[Event "*** Titled Tuesday Blitz"]
[Site "Chess.com"]
[Date "2019.04.02"]
[Round "10"]
[White "bugsbunny444"]
[Black "Blitzstream"]
[Result "1/2-1/2"]
[WhiteElo "2510"]
[BlackElo "2676"]
[TimeControl "180+2"]
[EndTime "16:18:50 PDT"]
[Termination "Game drawn by agreement"]

1. Nf3 {[%clk 0:03:01.9]} 1... Nf6 {[%clk 0:03:00.3]} 2. c4 {[%clk 0:03:03.1]}
2... c6 {[%clk 0:03:01.1]} 3. g3 {[%clk 0:03:04.3]} 3... d5 {[%clk 0:03:02.4]}
4. Bg2 {[%clk 0:03:05.7]} 4... Bf5 {[%clk 0:03:04.1]} 5. cxd5 {[%clk 0:03:06.5]}
5... cxd5 {[%clk 0:03:05.3]} 6. Qb3 {[%clk 0:03:07.9]} 6... Qb6 {[%clk
0:03:06.4]} 7. Nc3 {[%clk 0:03:09.4]} 7... e6 {[%clk 0:03:03.7]} 8. d3 {[%clk
0:03:10.7]} 8... Qxb3 {[%clk 0:03:04]} 9. axb3 {[%clk 0:03:11.7]} 9... Nc6
{[%clk 0:03:05.2]} 10. O-O {[%clk 0:03:12.4]} 10... Be7 {[%clk 0:03:04.8]} 11.
Be3 {[%clk 0:03:13.6]} 11... O-O {[%clk 0:03:05]} 12. Nd4 {[%clk 0:03:15.1]}
12... Nxd4 {[%clk 0:02:58.1]} 13. Bxd4 {[%clk 0:03:17]} 13... a6 {[%clk
0:02:56.5]} 14. e4 {[%clk 0:03:17.6]} 14... Bg6 {[%clk 0:02:51.7]} 15. exd5
{[%clk 0:03:18]} 15... exd5 {[%clk 0:02:52.8]} 16. Rfe1 {[%clk 0:03:17.9]} 16...
Bb4 {[%clk 0:02:38.3]} 17. Bxf6 {[%clk 0:02:32.5]} 17... gxf6 {[%clk 0:02:37.1]}
18. Bxd5 {[%clk 0:02:33.6]} 18... Bxd3 {[%clk 0:01:54]} 19. Re3 {[%clk
0:02:18.3]} 19... Bg6 {[%clk 0:01:40.3]} 20. Bxb7 {[%clk 0:02:18.5]} 20... Rad8
{[%clk 0:01:41.5]} 21. Rxa6 {[%clk 0:02:15.8]} 21... Kg7 {[%clk 0:01:17.5]} 22.
Rf3 {[%clk 0:01:58.2]} 22... Rd2 {[%clk 0:00:43.6]} 23. Rb6 {[%clk 0:01:06]}
23... Bc5 {[%clk 0:00:33.1]} 24. Rbxf6 {[%clk 0:00:59.7]} 24... Rxb2 {[%clk
0:00:30.2]} 25. Na4 {[%clk 0:00:51.6]} 25... Rb1+ {[%clk 0:00:30]} 26. Kg2
{[%clk 0:00:51.4]} 26... Be7 {[%clk 0:00:26.5]} 27. R6f4 {[%clk 0:00:47.5]}
27... Rd8 {[%clk 0:00:22.9]} 28. Be4 {[%clk 0:00:36.2]} 28... Bh5 {[%clk
0:00:16.5]} 29. g4 {[%clk 0:00:36.5]} 29... Bd6 {[%clk 0:00:04.9]} 30. gxh5
{[%clk 0:00:28.2]} 30... Bxf4 {[%clk 0:00:05.3]} 31. Rxf4 {[%clk 0:00:30.1]}
31... Rxb3 {[%clk 0:00:04.2]} 32. Nc5 {[%clk 0:00:23.3]} 32... Rb4 {[%clk
0:00:03.7]} 33. Kg3 {[%clk 0:00:17.4]} 33... Rdd4 {[%clk 0:00:03.8]} 34. Rg4+
{[%clk 0:00:16.2]} 34... Kf6 {[%clk 0:00:03.9]} 35. f3 {[%clk 0:00:17]} 35...
Ke7 {[%clk 0:00:04.2]} 36. Rg7 {[%clk 0:00:13.3]} 36... h6 {[%clk 0:00:05.2]}
37. Nd3 {[%clk 0:00:12.4]} 37... Rb3 {[%clk 0:00:04.3]} 38. Ne5 {[%clk
0:00:13.1]} 38... Rxe4 {[%clk 0:00:05.1]} 39. Nxf7 {[%clk 0:00:09.6]} 39... Kf6
{[%clk 0:00:04.5]} 40. Rh7 {[%clk 0:00:10.5]} 40... Ree3 {[%clk 0:00:05.7]} 41.
Nxh6 {[%clk 0:00:07.5]} 41... Rxf3+ {[%clk 0:00:06.3]} 42. Kg4 {[%clk
0:00:09.1]} 42... Rfc3 {[%clk 0:00:06.1]} 43. Rf7+ {[%clk 0:00:08.4]} 43... Ke6
{[%clk 0:00:07.6]} 44. Rf4 {[%clk 0:00:08.4]} 44... Rh3 {[%clk 0:00:04.7]}
1/2-1/2

[Event "*** Titled Tuesday Blitz"]
[Site "Chess.com"]
[Date "2019.04.02"]
[Round "10"]
[White "SaraciNderim"]
[Black "eldur16"]
[Result "0-1"]
[WhiteElo "2695"]
[BlackElo "2507"]
[TimeControl "180+2"]
[EndTime "16:18:56 PDT"]
[Termination "eldur16 won by resignation"]

1. d4 {[%clk 0:03:01.9]} 1... Nf6 {[%clk 0:03:00.2]} 2. Bg5 {[%clk 0:03:02.2]}
2... c5 {[%clk 0:03:00.1]} 3. Bxf6 {[%clk 0:03:02.8]} 3... gxf6 {[%clk
0:03:00.5]} 4. dxc5 {[%clk 0:03:04.1]} 4... Qa5+ {[%clk 0:02:58.6]} 5. Qd2
{[%clk 0:03:04.3]} 5... Qxc5 {[%clk 0:02:58.8]} 6. Nc3 {[%clk 0:03:05.4]} 6...
b6 {[%clk 0:02:54.4]} 7. Nf3 {[%clk 0:03:05.2]} 7... Bb7 {[%clk 0:02:55.1]} 8.
O-O-O {[%clk 0:03:05.6]} 8... d6 {[%clk 0:02:54.7]} 9. e3 {[%clk 0:03:06.2]}
9... Nd7 {[%clk 0:02:48.7]} 10. Kb1 {[%clk 0:02:59.3]} 10... f5 {[%clk 0:02:43]}
11. Bb5 {[%clk 0:02:56.4]} 11... Bg7 {[%clk 0:02:40.9]} 12. Nd4 {[%clk
0:02:54.5]} 12... O-O-O {[%clk 0:02:32.5]} 13. Na4 {[%clk 0:02:31.2]} 13... Qe5
{[%clk 0:02:30.4]} 14. f4 {[%clk 0:02:18.1]} 14... Qf6 {[%clk 0:02:25.1]} 15.
Nc6 {[%clk 0:02:10.8]} 15... Bxc6 {[%clk 0:02:18.9]} 16. Bxc6 {[%clk 0:02:12.7]}
16... Nc5 {[%clk 0:02:18]} 17. c3 {[%clk 0:01:27.8]} 17... Nxa4 {[%clk
0:02:09.1]} 18. Bxa4 {[%clk 0:01:25.9]} 18... Kb8 {[%clk 0:02:09.5]} 19. Qd5
{[%clk 0:00:19.2]} 19... Rc8 {[%clk 0:02:09.1]} 20. Bc2 {[%clk 0:00:18.1]} 20...
Rc5 {[%clk 0:02:09.1]} 21. Qd4 {[%clk 0:00:16.6]} 21... Qg6 {[%clk 0:01:41.1]}
22. Qd3 {[%clk 0:00:13.9]} 22... h5 {[%clk 0:01:36.9]} 23. g3 {[%clk 0:00:14.8]}
23... Rhc8 {[%clk 0:01:30.7]} 24. Rhe1 {[%clk 0:00:13.3]} 24... Qf6 {[%clk
0:01:24.5]} 25. Qd4 {[%clk 0:00:12.1]} 25... Qg6 {[%clk 0:01:13.3]} 26. Qd2
{[%clk 0:00:13.2]} 26... d5 {[%clk 0:01:08.3]} 27. Bd3 {[%clk 0:00:10.8]} 27...
e6 {[%clk 0:01:07.7]} 28. Rc1 {[%clk 0:00:11.9]} 28... R8c7 {[%clk 0:01:03.5]}
29. Rc2 {[%clk 0:00:13.1]} 29... Bf6 {[%clk 0:01:00.8]} 30. Rec1 {[%clk
0:00:13.9]} 30... h4 {[%clk 0:01:00.7]} 31. gxh4 {[%clk 0:00:15.8]} 31... Bxh4
{[%clk 0:01:00.9]} 32. c4 {[%clk 0:00:17]} 32... dxc4 {[%clk 0:00:58.3]} 33.
Rxc4 {[%clk 0:00:18.5]} 33... Rxc4 {[%clk 0:00:57.5]} 34. Rxc4 {[%clk
0:00:20.4]} 34... Qg1+ {[%clk 0:00:39.3]} 35. Kc2 {[%clk 0:00:19.4]} 35... Be1
{[%clk 0:00:28.5]} 36. Qe2 {[%clk 0:00:16.1]} 36... Bf2 {[%clk 0:00:26.9]} 37.
Rxc7 {[%clk 0:00:15.8]} 37... Kxc7 {[%clk 0:00:26.8]} 38. e4 {[%clk 0:00:14.6]}
38... fxe4 {[%clk 0:00:24.8]} 39. Bxe4 {[%clk 0:00:14.9]} 39... Qxh2 {[%clk
0:00:25]} 40. f5 {[%clk 0:00:08.3]} 40... Kd6 {[%clk 0:00:19.2]} 41. fxe6 {[%clk
0:00:08.4]} 41... fxe6 {[%clk 0:00:19.8]} 42. Qd2+ {[%clk 0:00:09]} 42... Ke7
{[%clk 0:00:19.8]} 43. Qg5+ {[%clk 0:00:08.8]} 43... Kd6 {[%clk 0:00:16.8]} 44.
Qd8+ {[%clk 0:00:09.6]} 44... Kc5 {[%clk 0:00:16.1]} 45. Qe7+ {[%clk 0:00:02.8]}
45... Kd4 {[%clk 0:00:15.9]} 46. Qd6+ {[%clk 0:00:03.1]} 46... Qxd6 {[%clk
0:00:15.2]} 0-1

[Event "*** Titled Tuesday Blitz"]
[Site "Chess.com"]
[Date "2019.04.02"]
[Round "10"]
[White "iLuusions"]
[Black "ChessicallyInclined"]
[Result "0-1"]
[WhiteElo "2607"]
[BlackElo "2548"]
[TimeControl "180+2"]
[EndTime "16:18:57 PDT"]
[Termination "ChessicallyInclined won by resignation"]

1. d4 {[%clk 0:03:01.9]} 1... d5 {[%clk 0:03:00.8]} 2. c4 {[%clk 0:03:03.8]}
2... e6 {[%clk 0:03:01.7]} 3. Nf3 {[%clk 0:03:04.9]} 3... Nf6 {[%clk 0:03:02.7]}
4. g3 {[%clk 0:03:06]} 4... dxc4 {[%clk 0:03:04.1]} 5. Bg2 {[%clk 0:03:07.2]}
5... a6 {[%clk 0:03:05.2]} 6. O-O {[%clk 0:03:06.8]} 6... Nc6 {[%clk 0:03:06.5]}
7. e3 {[%clk 0:02:58.5]} 7... Bd7 {[%clk 0:03:03]} 8. Ne5 {[%clk 0:02:15.6]}
8... Nxe5 {[%clk 0:03:01.9]} 9. dxe5 {[%clk 0:02:17.5]} 9... Nd5 {[%clk
0:03:03.6]} 10. Bxd5 {[%clk 0:02:18.8]} 10... exd5 {[%clk 0:03:04]} 11. Qxd5
{[%clk 0:02:20.7]} 11... Be6 {[%clk 0:03:03.1]} 12. Qf3 {[%clk 0:02:07.5]} 12...
Be7 {[%clk 0:02:59.6]} 13. Nc3 {[%clk 0:02:07.3]} 13... c6 {[%clk 0:02:57.3]}
14. Ne2 {[%clk 0:01:28.4]} 14... Qc7 {[%clk 0:02:55.3]} 15. Qe4 {[%clk
0:01:20.4]} 15... Bd5 {[%clk 0:02:51.2]} 16. Qf4 {[%clk 0:01:19.2]} 16... O-O
{[%clk 0:02:50.8]} 17. e4 {[%clk 0:01:16.8]} 17... Be6 {[%clk 0:02:49.6]} 18.
Nd4 {[%clk 0:01:17.8]} 18... Bh3 {[%clk 0:02:47.4]} 19. Re1 {[%clk 0:01:14.3]}
19... Rad8 {[%clk 0:02:47.9]} 20. Nf5 {[%clk 0:01:07.4]} 20... Bb4 {[%clk
0:02:46.9]} 21. Qg5 {[%clk 0:01:02.3]} 21... Bxf5 {[%clk 0:02:46.6]} 22. exf5
{[%clk 0:01:01.2]} 22... f6 {[%clk 0:02:29.8]} 23. exf6 {[%clk 0:00:43.6]} 23...
Bxe1 {[%clk 0:02:29]} 24. Bf4 {[%clk 0:00:44]} 24... Bxf2+ {[%clk 0:02:19.7]}
25. Kxf2 {[%clk 0:00:39.7]} 25... Qb6+ {[%clk 0:02:20.2]} 26. Kf1 {[%clk
0:00:26.8]} 26... Rxf6 {[%clk 0:02:17.2]} 27. Be5 {[%clk 0:00:28]} 27... Rf7
{[%clk 0:02:16.2]} 28. Re1 {[%clk 0:00:23.2]} 28... Rdf8 {[%clk 0:02:04.8]} 29.
g4 {[%clk 0:00:24]} 29... Qb5 {[%clk 0:01:58.4]} 30. Kg2 {[%clk 0:00:22.1]}
30... Qd5+ {[%clk 0:01:56.3]} 31. Kg3 {[%clk 0:00:19.9]} 31... Re8 {[%clk
0:01:42.7]} 32. Bc3 {[%clk 0:00:20.7]} 32... Rxe1 {[%clk 0:01:41.1]} 33. Bxe1
{[%clk 0:00:22.6]} 33... Qe5+ {[%clk 0:01:40.9]} 34. Kf2 {[%clk 0:00:23.8]}
34... Qd4+ {[%clk 0:01:35.1]} 35. Kg3 {[%clk 0:00:22.8]} 35... Qd6+ {[%clk
0:01:31.8]} 36. Kh3 {[%clk 0:00:21.2]} 36... Qd3+ {[%clk 0:01:29.2]} 37. Bg3
{[%clk 0:00:21.8]} 37... Qf1+ {[%clk 0:01:29.9]} 38. Kh4 {[%clk 0:00:23]} 38...
h6 {[%clk 0:01:26.8]} 39. Qd8+ {[%clk 0:00:23.8]} 39... Rf8 {[%clk 0:01:19.6]}
40. Qd7 {[%clk 0:00:24.2]} 40... b5 {[%clk 0:00:47.4]} 41. Be5 {[%clk
0:00:23.4]} 41... Qe1+ {[%clk 0:00:44.9]} 42. Bg3 {[%clk 0:00:23.9]} 42... Qe8
{[%clk 0:00:44.3]} 43. Qc7 {[%clk 0:00:24.6]} 43... Qd8+ {[%clk 0:00:45.1]} 44.
Qxd8 {[%clk 0:00:22.3]} 44... Rxd8 {[%clk 0:00:47]} 45. Be5 {[%clk 0:00:23.6]}
45... Rd2 {[%clk 0:00:47.2]} 46. Kh5 {[%clk 0:00:24.2]} 46... Kf7 {[%clk
0:00:48.4]} 47. h4 {[%clk 0:00:25.3]} 47... b4 {[%clk 0:00:47]} 48. g5 {[%clk
0:00:25.6]} 48... hxg5 {[%clk 0:00:47.7]} 49. hxg5 {[%clk 0:00:27.5]} 49... a5
{[%clk 0:00:46.5]} 50. g6+ {[%clk 0:00:27.8]} 50... Kg8 {[%clk 0:00:47.9]} 51.
Kg5 {[%clk 0:00:29]} 51... a4 {[%clk 0:00:48.8]} 52. f6 {[%clk 0:00:28]} 52...
gxf6+ {[%clk 0:00:47.8]} 53. Kxf6 {[%clk 0:00:29.9]} 53... a3 {[%clk 0:00:48.7]}
54. bxa3 {[%clk 0:00:30.5]} 54... bxa3 {[%clk 0:00:50.6]} 55. Ke6 {[%clk
0:00:31.2]} 55... Rxa2 {[%clk 0:00:50.1]} 56. Kd6 {[%clk 0:00:31.9]} 56... Re2
{[%clk 0:00:50.9]} 57. Bf6 {[%clk 0:00:31.5]} 57... a2 {[%clk 0:00:50.7]} 58.
Kc5 {[%clk 0:00:27.1]} 58... Re1 {[%clk 0:00:50.9]} 0-1

[Event "*** Titled Tuesday Blitz"]
[Site "Chess.com"]
[Date "2019.04.02"]
[Round "10"]
[White "Guenplen"]
[Black "Floatingdream1"]
[Result "1/2-1/2"]
[WhiteElo "2903"]
[BlackElo "2817"]
[TimeControl "180+2"]
[EndTime "16:19:16 PDT"]
[Termination "Game drawn by repetition"]

1. Nf3 {[%clk 0:03:01.9]} 1... c5 {[%clk 0:02:59.9]} 2. c4 {[%clk 0:03:02]} 2...
g6 {[%clk 0:03:00]} 3. d4 {[%clk 0:02:57.1]} 3... cxd4 {[%clk 0:03:00.7]} 4.
Nxd4 {[%clk 0:02:59]} 4... Nc6 {[%clk 0:03:01.2]} 5. e4 {[%clk 0:02:58.1]} 5...
Nf6 {[%clk 0:03:02.3]} 6. Nc3 {[%clk 0:02:58.2]} 6... d6 {[%clk 0:03:03.1]} 7.
Be2 {[%clk 0:02:57.6]} 7... Nxd4 {[%clk 0:03:04]} 8. Qxd4 {[%clk 0:02:58.2]}
8... Bg7 {[%clk 0:03:05.3]} 9. Bg5 {[%clk 0:02:58.5]} 9... O-O {[%clk
0:03:06.1]} 10. Qe3 {[%clk 0:02:59]} 10... a5 {[%clk 0:03:07.2]} 11. a4 {[%clk
0:02:43.6]} 11... Be6 {[%clk 0:03:04.1]} 12. O-O {[%clk 0:02:42.3]} 12... Rc8
{[%clk 0:03:01.7]} 13. b3 {[%clk 0:02:41.9]} 13... Nd7 {[%clk 0:03:02.6]} 14.
Rab1 {[%clk 0:02:38.9]} 14... Nc5 {[%clk 0:03:03.4]} 15. Nb5 {[%clk 0:02:32.3]}
15... Bd7 {[%clk 0:03:00.1]} 16. Rfe1 {[%clk 0:02:22.4]} 16... Bc6 {[%clk
0:02:53.1]} 17. Bf3 {[%clk 0:02:02.5]} 17... Ne6 {[%clk 0:02:53.1]} 18. Bh6
{[%clk 0:01:55]} 18... Re8 {[%clk 0:02:28]} 19. Bxg7 {[%clk 0:01:53.3]} 19...
Kxg7 {[%clk 0:02:29.2]} 20. Bg4 {[%clk 0:01:54.6]} 20... Bd7 {[%clk 0:02:26]}
21. Bxe6 {[%clk 0:01:54.2]} 21... Bxe6 {[%clk 0:02:26.1]} 22. Rbd1 {[%clk
0:01:55.2]} 22... Rc5 {[%clk 0:02:25.5]} 23. f4 {[%clk 0:01:51.1]} 23... Qc8
{[%clk 0:02:26]} 24. h3 {[%clk 0:01:49.3]} 24... Rd8 {[%clk 0:02:22.5]} 25. e5
{[%clk 0:01:23.8]} 25... d5 {[%clk 0:02:11.3]} 26. Nd4 {[%clk 0:01:22.7]} 26...
Rc7 {[%clk 0:02:04.5]} 27. Nb5 {[%clk 0:01:16.6]} 27... Rcd7 {[%clk 0:02:00.8]}
28. c5 {[%clk 0:01:13.5]} 28... d4 {[%clk 0:02:01.2]} 29. Nxd4 {[%clk
0:01:08.5]} 29... Bxb3 {[%clk 0:02:01.8]} 30. e6 {[%clk 0:01:01.9]} 30... Bxe6
{[%clk 0:01:44.4]} 31. Qe5+ {[%clk 0:00:58.9]} 31... Kg8 {[%clk 0:01:43.7]} 32.
Nxe6 {[%clk 0:00:58]} 32... fxe6 {[%clk 0:01:44.7]} 33. Qxe6+ {[%clk 0:00:59.8]}
33... Kg7 {[%clk 0:01:45.8]} 34. Qe5+ {[%clk 0:01:00.1]} 34... Kg8 {[%clk
0:01:46]} 35. Rb1 {[%clk 0:00:57.9]} 35... Qc6 {[%clk 0:01:37.6]} 36. Qe6+
{[%clk 0:00:40.3]} 36... Qxe6 {[%clk 0:01:37.4]} 37. Rxe6 {[%clk 0:00:42.2]}
37... Kf7 {[%clk 0:01:31]} 38. Reb6 {[%clk 0:00:37.2]} 38... Rd1+ {[%clk
0:01:27.9]} 39. Kf2 {[%clk 0:00:22.6]} 39... Rxb1 {[%clk 0:01:26.8]} 40. Rxb1
{[%clk 0:00:22.8]} 40... Rd4 {[%clk 0:01:27.9]} 41. Ke3 {[%clk 0:00:23.2]} 41...
Rxa4 {[%clk 0:01:27.9]} 42. Rxb7 {[%clk 0:00:24.1]} 42... Rc4 {[%clk 0:01:28.6]}
43. Rb5 {[%clk 0:00:22.1]} 43... a4 {[%clk 0:01:28.1]} 44. Kd3 {[%clk
0:00:23.3]} 44... Rxf4 {[%clk 0:01:22.4]} 45. c6 {[%clk 0:00:24.5]} 45... Ke6
{[%clk 0:01:20.1]} 46. Rc5 {[%clk 0:00:24.3]} 46... Rf8 {[%clk 0:01:20.9]} 47.
Ra5 {[%clk 0:00:05.9]} 47... Rc8 {[%clk 0:01:21.1]} 48. Ra6 {[%clk 0:00:06.7]}
48... Kd6 {[%clk 0:01:21.4]} 49. c7+ {[%clk 0:00:06.6]} 49... Kxc7 {[%clk
0:01:22.2]} 50. Rxa4 {[%clk 0:00:08.5]} 50... Kd7 {[%clk 0:01:22.9]} 51. Rh4
{[%clk 0:00:09.4]} 51... h5 {[%clk 0:01:23.3]} 52. Re4 {[%clk 0:00:09.4]} 52...
Rf8 {[%clk 0:01:23.7]} 53. Ke3 {[%clk 0:00:09.9]} 53... Kd6 {[%clk 0:01:24.8]}
54. Ra4 {[%clk 0:00:10.2]} 54... Rf6 {[%clk 0:01:22.6]} 55. Ke4 {[%clk
0:00:10.5]} 55... Ke6 {[%clk 0:01:22]} 56. Ra5 {[%clk 0:00:08.5]} 56... Kf7
{[%clk 0:01:22.7]} 57. g4 {[%clk 0:00:06.8]} 57... h4 {[%clk 0:01:20.3]} 58. Ra3
{[%clk 0:00:05.6]} 58... Rf1 {[%clk 0:01:20.6]} 59. Ke5 {[%clk 0:00:06.5]} 59...
Rf2 {[%clk 0:01:17.3]} 60. Ke4 {[%clk 0:00:07.5]} 60... g5 {[%clk 0:01:17.8]}
61. Ke5 {[%clk 0:00:08.3]} 61... Rf4 {[%clk 0:01:17.9]} 62. Rb3 {[%clk
0:00:09.2]} 62... Rf1 {[%clk 0:01:17.2]} 63. Ra3 {[%clk 0:00:10.2]} 63... Rf4
{[%clk 0:01:17.4]} 64. Rb3 {[%clk 0:00:10.8]} 64... Rf1 {[%clk 0:01:16.9]} 65.
Re3 {[%clk 0:00:11.3]} 65... Rf4 {[%clk 0:01:17.5]} 66. Rb3 {[%clk 0:00:11.8]}
66... Rf1 {[%clk 0:01:18.4]} 67. Re3 {[%clk 0:00:12.6]} 67... Rf4 {[%clk
0:01:19.3]} 68. Rb3 {[%clk 0:00:13.6]} 1/2-1/2

[Event "*** Titled Tuesday Blitz"]
[Site "Chess.com"]
[Date "2019.04.02"]
[Round "10"]
[White "GremioPrudente"]
[Black "Karina_Oparina"]
[Result "1-0"]
[WhiteElo "2072"]
[BlackElo "2213"]
[TimeControl "180+2"]
[EndTime "16:19:27 PDT"]
[Termination "GremioPrudente won by resignation"]

1. Nf3 {[%clk 0:03:01.9]} 1... Nf6 {[%clk 0:02:51.5]} 2. c4 {[%clk 0:03:01.2]}
2... e6 {[%clk 0:02:51.8]} 3. d4 {[%clk 0:03:02]} 3... b6 {[%clk 0:02:48.9]} 4.
g3 {[%clk 0:03:02.4]} 4... Bb7 {[%clk 0:02:49.1]} 5. Bg2 {[%clk 0:03:03.9]} 5...
Be7 {[%clk 0:02:46.9]} 6. O-O {[%clk 0:03:05.4]} 6... O-O {[%clk 0:02:47.3]} 7.
Nc3 {[%clk 0:03:06.8]} 7... Ne4 {[%clk 0:02:47.7]} 8. Qc2 {[%clk 0:02:58.5]}
8... Nxc3 {[%clk 0:02:43.1]} 9. Qxc3 {[%clk 0:02:53.8]} 9... c5 {[%clk
0:02:42.2]} 10. Rd1 {[%clk 0:02:41.7]} 10... d6 {[%clk 0:02:34.6]} 11. b3 {[%clk
0:02:42.1]} 11... Bf6 {[%clk 0:02:34.5]} 12. Bb2 {[%clk 0:02:38.5]} 12... Nc6
{[%clk 0:02:29.3]} 13. Qd2 {[%clk 0:02:10.7]} 13... Qe7 {[%clk 0:02:06.9]} 14.
d5 {[%clk 0:02:10.6]} 14... exd5 {[%clk 0:02:05.5]} 15. Bxf6 {[%clk 0:02:07.3]}
15... Qxf6 {[%clk 0:02:05.6]} 16. Qxd5 {[%clk 0:02:01.1]} 16... Rad8 {[%clk
0:02:05]} 17. Qg5 {[%clk 0:01:53.9]} 17... Qxg5 {[%clk 0:01:55.9]} 18. Nxg5
{[%clk 0:01:54.3]} 18... Na5 {[%clk 0:01:52]} 19. Rd2 {[%clk 0:01:48.2]} 19...
Bxg2 {[%clk 0:01:46.1]} 20. Kxg2 {[%clk 0:01:49.2]} 20... Rfe8 {[%clk
0:01:46.9]} 21. Rad1 {[%clk 0:01:39]} 21... Nb7 {[%clk 0:01:46.5]} 22. Kf3
{[%clk 0:01:33.1]} 22... f5 {[%clk 0:01:36]} 23. Nh3 {[%clk 0:01:16.9]} 23...
Kf7 {[%clk 0:01:32.4]} 24. Nf4 {[%clk 0:01:11]} 24... Re5 {[%clk 0:01:18.2]} 25.
Nd5 {[%clk 0:01:05]} 25... Rde8 {[%clk 0:01:14.4]} 26. h4 {[%clk 0:00:54.7]}
26... R8e6 {[%clk 0:00:58.6]} 27. e3 {[%clk 0:00:50]} 27... Rg6 {[%clk 0:00:46]}
28. Rd3 {[%clk 0:00:43.6]} 28... Ke8 {[%clk 0:00:40.8]} 29. Nf4 {[%clk
0:00:44.3]} 29... Rf6 {[%clk 0:00:39.7]} 30. Nd5 {[%clk 0:00:45.3]} 30... Rh6
{[%clk 0:00:38.7]} 31. Nc7+ {[%clk 0:00:42.2]} 31... Kd7 {[%clk 0:00:38.4]} 32.
Nb5 {[%clk 0:00:43.7]} 32... a6 {[%clk 0:00:38.4]} 33. Nc3 {[%clk 0:00:43.4]}
33... Kc6 {[%clk 0:00:32]} 34. Nd5 {[%clk 0:00:43.6]} 34... Rhe6 {[%clk
0:00:29.2]} 35. Nf4 {[%clk 0:00:43.9]} 35... Re8 {[%clk 0:00:25]} 36. Nd5 {[%clk
0:00:43.9]} 36... Nd8 {[%clk 0:00:18.1]} 37. Nf4 {[%clk 0:00:44.1]} 37... Nf7
{[%clk 0:00:17.9]} 38. Nd5 {[%clk 0:00:38.6]} 38... R5e6 {[%clk 0:00:17.3]} 39.
Nf4 {[%clk 0:00:36.7]} 39... Ne5+ {[%clk 0:00:17.6]} 40. Ke2 {[%clk 0:00:31]}
40... Nxd3 {[%clk 0:00:18]} 41. Nxe6 {[%clk 0:00:32]} 41... Nb2 {[%clk 0:00:15]}
42. Nxg7 {[%clk 0:00:21.2]} 42... Nxd1 {[%clk 0:00:15.1]} 43. Nxe8 {[%clk
0:00:21.4]} 43... Nc3+ {[%clk 0:00:15.9]} 44. Kd3 {[%clk 0:00:22.1]} 44... Nxa2
{[%clk 0:00:16.8]} 45. Ng7 {[%clk 0:00:22.3]} 45... Nc1+ {[%clk 0:00:15]} 46.
Kc2 {[%clk 0:00:21.7]} 46... Ne2 {[%clk 0:00:13.7]} 47. Nxf5 {[%clk 0:00:21.7]}
47... d5 {[%clk 0:00:14.3]} 48. g4 {[%clk 0:00:21.1]} 48... d4 {[%clk
0:00:13.4]} 49. g5 {[%clk 0:00:17.8]} 49... dxe3 {[%clk 0:00:13.7]} 50. fxe3
{[%clk 0:00:18.8]} 50... Ng1 {[%clk 0:00:13.1]} 51. h5 {[%clk 0:00:19.1]} 51...
Nf3 {[%clk 0:00:13.5]} 52. g6 {[%clk 0:00:18.8]} 52... hxg6 {[%clk 0:00:14.3]}
53. hxg6 {[%clk 0:00:17.6]} 1-0